bitfinex/quotes_ETHUSD_20251010
["timestamp","ask_amount","ask_price","bid_price","bid_amount"]
[1760073431188,0.452,4341.7,4341.4,2.30340443]
[1760073431358,6.944,4341.6,4341.5,2.30331354]
[1760073432191,6.944,4341.6,4341.3,2.30445238]
[1760073432384,0.452,4341.5,4341.3,2.30445238]
[1760073432552,0.452,4341.5,4341.4,2.30340443]
[1760073432752,6.944,4341.5,4341.4,2.30340443]
[1760073432952,6.492,4341.5,4341.4,2.30340443]
[1760073434052,6.492,4341.5,4341.4,2.76460443]
[1760073434376,6.492,4341.5,4341.4,3.27381792]
[1760073438891,0.002,4341.8,4341.7,2.30324527]
[1760073439188,6.493,4341.8,4341.7,2.78747772]
[1760073439503,6.493,4341.8,4341.7,2.76444527]
[1760073441391,0.002,4341.8,4341.7,2.76444527]
[1760073441591,0.002,4341.8,4341.7,4.87760041]
[1760073444613,1e-08,4341.9,4341.8,2.30319222]
[1760073444806,1e-08,4341.9,4341.8,2.76439222]
[1760073446312,1e-08,4341.9,4341.8,4.68439222]
[1760073446484,1e-08,4341.9,4341.8,6.4624641]
[1760073447185,0.002,4342.3,4342.2,2.30298005]
[1760073447434,0.002,4342.3,4342.2,17.59688205]
[1760073447610,0.002,4342.3,4342.2,18.04098205]
[1760073448394,6.491,4342.7,4342.4,2.30284882]
[1760073448588,6.491,4342.7,4342.6,2.30276792]
[1760073448783,6.491,4342.7,4342.6,2.74686792]
[1760073449216,2.396,4343.0,4342.7,2.3027149]
[1760073449724,2.396,4343.0,4342.7,2.76984204]
[1760073451417,2.396,4343.0,4342.7,2.7468149]
[1760073451582,2.396,4343.0,4342.7,8.41839782]
[1760073458003,6.493,4343.1,4342.7,8.41839782]
[1760073459212,6.492,4343.1,4342.7,8.41839782]
[1760073460122,0.1164,4343.3,4342.7,8.41839782]
[1760073460339,0.108,4343.2,4342.7,8.41839782]
[1760073461817,2.148,4343.2,4342.7,8.41839782]
[1760073462208,0.002,4343.3,4342.7,13.49598415]
[1760073462408,0.002,4343.3,4342.7,8.53279782]
[1760073466743,0.1164,4343.3,4342.7,8.08869782]
[1760073466908,0.1164,4343.3,4342.7,8.52649782]
[1760073467942,0.002,4343.3,4342.7,2.3027149]
[1760073468243,2.8334,4343.1,4342.7,2.3027149]
[1760073470241,5.434,4342.9,4342.7,2.32574204]
[1760073470442,0.012,4342.9,4342.7,2.76354204]
[1760073474951,0.012,4342.9,4342.7,2.7405149]
[1760073477524,0.012,4342.9,4342.7,2.76354204]
[1760073481576,0.012,4342.9,4342.7,3.27017568]
[1760073481765,0.012,4342.9,4342.7,3.24714854]
[1760073482154,0.012,4342.9,4342.7,2.80934854]
[1760073482349,0.012,4342.9,4342.7,2.3027149]
[1760073482994,0.012,4342.9,4342.7,2.7648149]
[1760073483349,0.012,4342.9,4342.7,2.78784204]
[1760073485044,0.012,4342.9,4342.7,7.75102837]
[1760073485244,0.012,4342.9,4342.7,7.72800123]
[1760073485444,0.012,4342.9,4342.7,8.74252079]
[1760073487144,0.012,4342.9,4342.7,7.26590123]
[1760073487344,0.012,4342.9,4342.7,7.72800123]
[1760073491796,0.012,4342.9,4342.7,2.3027149]
[1760073492524,0.1264,4342.9,4342.7,2.3027149]
[1760073496620,0.1264,4342.9,4342.7,2.32574204]
[1760073497403,0.012,4342.9,4342.7,2.7648149]
[1760073497605,0.012,4342.9,4342.7,3.77933446]
[1760073499510,0.012,4342.9,4342.7,2.3027149]
[1760073499813,0.1264,4342.9,4342.7,2.3027149]
[1760073500600,0.4614,4342.8,4342.7,2.3027149]
[1760073501421,0.002,4342.8,4342.7,7.26590123]
[1760073501704,0.002,4342.8,4342.7,7.72800123]
[1760073503571,0.002,4342.8,4342.7,8.60634494]
[1760073505306,0.002,4342.8,4342.7,9.70869887]
[1760073515038,1e-08,4342.9,4342.8,2.30266187]
[1760073515337,1e-08,4342.9,4342.8,2.78688848]
[1760073516037,1e-08,4342.9,4342.8,2.76386187]
[1760073516543,1e-08,4342.9,4342.8,9.25286187]
[1760073516839,1e-08,4342.9,4342.8,11.35596738]
[1760073518540,1e-08,4342.9,4342.8,11.44817205]
[1760073521629,0.002,4343.3,4343.2,2.3024498]
[1760073521830,0.002,4343.3,4343.2,8.14397984]
[1760073522027,0.002,4343.3,4343.2,8.60517984]
[1760073522231,0.002,4343.3,4343.2,9.70739071]
[1760073525774,0.002,4343.3,4343.2,8.14397984]
[1760073525975,0.4757,4343.3,4342.8,5.84153004]
[1760073526179,0.4757,4343.3,4343.1,2.30250282]
[1760073526180,0.4737,4343.2,4343.1,2.30250282]
[1760073528193,0.4737,4343.2,4342.5,2.30282095]
[1760073528351,3.497,4343.1,4342.4,2.30286198]
[1760073528552,1.8734,4343.0,4342.4,2.30286198]
[1760073528751,0.4684,4342.9,4342.5,2.30280868]
[1760073528973,0.4684,4342.8,4342.5,2.30280868]
[1760073529146,1.405,4343.0,4342.6,2.30276203]
[1760073529352,0.4684,4342.9,4342.6,2.30276203]
[1760073529752,0.4684,4342.8,4342.6,2.30276203]
[1760073529952,0.4684,4342.7,4342.6,2.30276203]
[1760073530850,0.6917822,4342.9,4342.3,2.30390828]
[1760073530851,0.6917822,4342.9,4342.4,5.84153004]
[1760073531050,0.002,4343.3,4343.2,2.3024498]
[1760073531354,0.002,4343.3,4343.2,8.14397984]
[1760073534093,0.002,4343.3,4342.3,0.001]
[1760073534250,0.4704,4343.3,4343.2,2.3024498]
[1760073537452,0.002,4343.3,4343.2,2.3024498]
[1760073538463,0.471,4343.3,4343.2,2.3024498]
[1760073540381,0.1144,4343.2,4342.9,5.84153004]
[1760073540583,0.002,4343.3,4342.9,5.84153004]
[1760073540776,0.469,4343.1,4342.9,5.84153004]
[1760073540978,0.469,4343.1,4343.0,2.30255583]
[1760073543705,0.002,4343.3,4343.2,2.3024498]
[1760073545408,6.026,4343.3,4343.2,2.3024498]
[1760073545621,6.495,4343.3,4343.2,2.3024498]
[1760073548214,6.495,4343.3,4342.9,5.84153004]
[1760073548215,0.1144,4343.2,4342.9,5.84153004]
[1760073548411,6.026,4343.3,4343.2,2.3024498]
[1760073549128,6.495,4343.3,4343.2,2.3024498]
[1760073550210,6.495,4343.3,4342.6,0.001]
[1760073550211,0.1144,4343.2,4342.6,0.001]
[1760073550422,0.1144,4342.9,4342.8,2.30261623]
[1760073550597,0.1144,4342.9,4342.8,8.14414627]
[1760073551519,0.1144,4342.9,4342.8,9.63093729]
[1760073551718,0.002,4343.3,4343.2,2.3024498]
[1760073551920,0.002,4343.3,4343.2,8.14397984]
[1760073557545,0.471,4343.3,4343.2,8.14397984]
[1760073557832,0.002,4343.3,4343.2,8.14397984]
[1760073559235,0.1164,4343.3,4343.2,8.96094934]
[1760073559407,0.002,4343.3,4343.2,8.96094934]
[1760073559930,0.002,4343.3,4343.2,8.51894934]
[1760073560325,0.002,4343.3,4343.2,8.96094934]
[1760073561632,0.002,4343.3,4343.2,8.51894934]
[1760073561824,0.002,4343.3,4343.2,8.14397984]
[1760073562019,0.471,4343.3,4343.2,8.14397984]
[1760073562222,0.002,4343.3,4343.2,8.14397984]
[1760073565439,0.002,4343.3,4343.2,7.26552978]
[1760073568159,0.002,4343.3,4343.2,12.67880976]
[1760073568308,0.002,4343.3,4343.2,14.17694378]
[1760073571353,0.002,4343.3,4343.2,13.72674378]
[1760073571575,0.002,4343.3,4342.8,0.001]
[1760073571775,3.101,4343.2,4342.8,0.001]
[1760073571922,0.4277,4343.1,4342.9,2.30256163]
[1760073572122,0.4277,4343.1,4342.8,0.001]
[1760073573455,0.6336,4343.0,4342.8,0.001]
[1760073573627,1.0613,4343.0,4342.8,0.001]
[1760073574033,2.9813,4343.0,4342.8,0.001]
[1760073574458,3.47633486,4343.0,4342.8,0.001]
[1760073574754,1.55633486,4343.0,4342.8,0.001]
[1760073574953,1.0613,4343.0,4342.8,0.001]
[1760073580471,0.002,4343.3,4342.8,4.96407998]
[1760073580657,0.002,4343.3,4343.2,4.96307998]
[1760073580864,3.114,4343.3,4343.2,4.96307998]
[1760073581440,3.5417,4343.3,4343.2,4.96307998]
[1760073581842,0.1144,4343.2,4343.1,2.30250042]
[1760073582041,0.5421,4343.2,4343.1,7.2655804]
[1760073582867,0.5421,4343.2,4343.1,7.2655828]
[1760073583441,0.5421,4343.2,4342.8,0.001]
[1760073583750,0.4277,4343.1,4342.8,0.001]
[1760073589347,0.6336,4343.2,4342.8,0.001]
[1760073589550,0.4579,4343.0,4342.8,0.001]
[1760073590481,0.4579,4343.0,4342.8,2.30364334]
[1760073590685,0.6336,4343.2,4342.9,2.30258463]
[1760073590983,0.6336,4343.2,4343.0,4.96307998]
[1760073591179,0.4579,4343.1,4343.0,4.96307998]
[1760073591688,6.2769,4343.1,4343.0,7.2656356]
[1760073591861,8.6729,4343.1,4343.0,7.2656356]
[1760073592682,6.9469,4343.1,4343.0,7.2656356]
[1760073592983,9.3429,4343.1,4343.0,7.2656356]
[1760073593145,9.3429,4343.1,4343.0,4.96307998]
[1760073594399,6.9469,4343.1,4343.0,4.96307998]
[1760073594578,9.3429,4343.1,4343.0,4.96307998]
[1760073599801,0.1144,4343.0,4342.8,0.001]
[1760073600301,0.4375,4342.9,4342.8,0.001]
[1760073601102,0.1144,4343.0,4342.9,2.30260885]
[1760073601504,0.5519,4343.0,4342.9,2.30260885]
[1760073601908,0.1144,4343.0,4342.9,2.30260885]
[1760073603303,0.5519,4343.0,4342.9,2.30260885]
[1760073604010,0.5519,4343.0,4342.8,2.3036533]
[1760073604219,0.4375,4342.9,4342.8,2.30365907]
[1760073605417,9.3225,4342.9,4342.8,2.30366187]
[1760073606317,0.1144,4343.0,4342.9,2.30260885]
[1760073606497,0.1144,4343.0,4342.9,2.74850885]
[1760073606694,0.51,4343.1,4343.0,2.30255583]
[1760073606896,0.51,4343.1,4343.0,2.74845583]
[1760073607096,0.51,4343.1,4343.0,7.71153581]
[1760073607285,0.51,4343.1,4343.0,8.77057031]
[1760073607617,0.9475,4343.1,4343.0,3.36159033]
[1760073607795,1.0619,4343.1,4343.0,2.30255583]
[1760073608997,0.6244,4343.1,4343.0,2.30255583]
[1760073610786,0.6244,4343.1,4342.8,0.001]
[1760073610991,0.4375,4343.0,4342.9,2.30260885]
[1760073612607,0.51,4343.1,4343.0,2.30255583]
[1760073613925,0.9475,4343.1,4343.0,2.30255583]
[1760073614535,0.51,4343.1,4343.0,2.30255583]
[1760073615098,0.002,4343.1,4343.0,2.30255583]
[1760073615301,5.228,4343.1,4343.0,2.76547767]
[1760073622032,0.002,4343.1,4343.0,2.76547767]
[1760073622228,6.49,4343.1,4343.0,0.46292184]
[1760073622549,6.9275,4343.1,4342.9,2.30259905]
[1760073622748,0.4375,4343.0,4342.8,0.001]
[1760073622954,0.1144,4342.9,4342.8,2.30366187]
[1760073624776,0.5519,4342.9,4342.8,0.001]
[1760073625076,3.48810885,4342.9,4342.8,0.001]
[1760073626442,1.1855,4342.9,4342.8,0.001]
[1760073632994,2.396,4342.9,4342.8,2.30362695]
[1760073633198,8.885,4342.9,4342.8,2.30362695]
[1760073634709,0.002,4343.1,4343.0,2.30255583]
[1760073635010,8.887,4343.1,4343.0,2.30255583]
[1760073636522,0.1144,4343.0,4342.8,2.30361157]
[1760073636691,0.4546,4342.9,4342.8,2.30361157]
[1760073637426,0.1144,4343.0,4342.9,2.30260885]
[1760073637989,8.9994,4343.0,4342.9,2.30260885]
[1760073642800,0.1144,4343.0,4342.9,2.30260885]
[1760073643129,0.6444,4343.0,4342.9,3.19284079]
[1760073643317,3.0404,4343.0,4342.9,3.19284079]
[1760073643900,0.1144,4343.0,4342.9,3.19284079]
[1760073644098,3.0224,4343.0,4342.9,3.19284079]
[1760073646232,3.0224,4343.0,4342.9,2.76334079]
[1760073649934,3.4542,4343.0,4342.8,0.001]
[1760073650100,0.4318,4342.9,4342.8,0.001]
[1760073650299,0.4318,4342.9,4342.8,2.30365942]
[1760073652345,0.1144,4343.0,4342.9,2.30260885]
[1760073652538,0.2544,4343.0,4342.9,9.08087792]
[1760073652736,0.2544,4343.0,4342.9,9.05785184]
[1760073654304,0.1144,4343.0,4342.9,8.60995184]
[1760073654513,0.002,4343.1,4343.0,2.30255583]
[1760073654736,0.002,4343.1,4343.0,4.15133318]
[1760073655796,0.002,4343.1,4343.0,4.12830763]
[1760073656004,0.002,4343.3,4343.2,2.3024498]
[1760073656230,0.01,4344.9,4343.5,2.30229077]
[1760073656416,0.01,4344.9,4344.8,8.26481298]
[1760073656715,0.01,4344.9,4344.8,11.35586313]
[1760073656928,0.01,4344.9,4344.8,9.87406313]
[1760073658239,0.2374,4346.8,4345.4,2.30128411]
[1760073658442,0.488,4346.0,4345.8,5.84661107]
[1760073658947,0.488,4346.0,4345.8,8.58588336]
[1760073659805,0.488,4346.0,4345.8,8.14768336]
[1760073660639,0.488,4346.0,4345.8,8.58588336]
[1760073660941,0.488,4346.0,4345.8,8.14768336]
[1760073661745,0.488,4346.0,4345.8,5.84661107]
[1760073661919,0.488,4346.0,4345.8,8.14768336]
[1760073665043,0.488,4346.0,4345.8,8.58588336]
[1760073665254,0.488,4346.0,4345.8,9.67458809]
[1760073666110,2.45,4346.1,4345.8,9.67458809]
[1760073667161,4.042,4346.1,4345.8,9.67458809]
[1760073667629,0.01,4346.9,4346.8,2.30054292]
[1760073667847,7.663,4346.9,4346.8,8.14715399]
[1760073668164,0.01,4346.9,4346.8,8.14715399]
[1760073668365,0.01,4346.9,4346.8,9.19193186]
[1760073668546,0.01,4346.9,4346.8,8.14715399]
[1760073669970,0.01,4346.9,4346.8,8.58535399]
[1760073671345,0.01,4346.9,4346.8,8.14715399]
[1760073671583,0.01,4346.9,4346.8,8.58535399]
[1760073671896,6.17,4347.7,4347.4,2.30020319]
[1760073672207,6.2844,4347.7,4347.6,8.14673067]
[1760073672344,6.17,4347.7,4347.6,8.14673067]
[1760073672756,6.17,4347.7,4347.6,8.58493067]
[1760073672968,0.4544,4348.6,4347.8,2.3000138]
[1760073672969,7.516,4348.4,4347.8,2.3000138]
[1760073674176,7.516,4348.4,4347.6,5.84661107]
[1760073674478,0.4544,4348.2,4347.8,2.3000138]
[1760073674880,7.516,4348.4,4347.8,2.3000138]
[1760073675279,0.4544,4348.2,4347.8,2.3000138]
[1760073675484,0.4544,4348.1,4347.8,2.3000138]
[1760073676458,0.4544,4348.1,4346.2,2.30085546]
[1760073676669,0.4544,4347.8,4347.2,5.84661107]
[1760073676871,0.4544,4347.8,4347.7,2.3000667]
[1760073677070,0.4544,4347.8,4347.2,5.84661107]
[1760073677071,0.01,4347.9,4347.8,2.3000138]
[1760073677275,0.012,4347.9,4347.8,2.3000138]
[1760073678452,8.889,4347.9,4347.8,2.3000138]
[1760073679191,9.3434,4347.9,4347.6,8.14668969]
[1760073679392,9.3434,4347.9,4347.8,2.3000138]
[1760073679793,9.3434,4347.9,4347.6,8.14672848]
[1760073679992,8.889,4347.9,4347.6,5.84661107]
[1760073680200,0.4544,4347.8,4347.7,2.3000667]
[1760073680595,0.4544,4347.8,4346.8,1.92]
[1760073680780,0.4544,4347.8,4347.6,2.3000813]
[1760073680982,0.4544,4347.7,4347.6,2.3000813]
[1760073682299,8.889,4347.9,4347.8,2.3000138]
[1760073683308,9.3434,4347.9,4347.8,2.3000138]
[1760073684377,0.012,4347.9,4347.8,2.3000138]
[1760073684698,0.012,4347.9,4347.8,3.78518596]
[1760073684896,0.012,4347.9,4347.8,3.34698596]
[1760073685614,0.012,4347.9,4347.8,3.78518596]
[1760073686774,0.012,4347.9,4347.8,3.34698596]
[1760073687010,0.012,4347.9,4347.8,3.77738596]
[1760073687509,0.012,4347.9,4347.8,8.72947249]
[1760073691212,0.012,4347.9,4347.8,8.29907249]
[1760073692090,0.012,4347.9,4347.8,8.72947249]
[1760073692488,0.012,4347.9,4347.8,7.25210033]
[1760073692688,0.012,4347.9,4346.4,0.4304]
[1760073693012,3.0909,4347.8,4347.5,2.30012253]
[1760073693190,2.8556,4347.8,4347.5,7.25220906]
[1760073693395,2.393,4347.8,4347.6,2.30010756]
[1760073693921,0.012,4347.9,4347.8,2.3000138]
[1760073694120,6.98,4347.9,4347.8,7.25210033]
[1760073697420,6.98,4347.9,4347.8,2.3000138]
[1760073699127,7.47602144,4347.9,4347.8,2.3000138]
[1760073699429,6.98,4347.9,4347.8,2.3000138]
[1760073700117,0.012,4347.9,4347.8,18.446419]
[1760073707842,0.012,4347.9,4347.8,2.3000138]
[1760073708149,0.1264,4347.9,4347.2,0.5632]
[1760073708441,0.1264,4347.9,4347.8,2.3000138]
[1760073716360,0.5714,4347.9,4347.8,2.3000138]
[1760073717442,0.012,4347.9,4347.8,2.3000138]
[1760073717660,0.012,4347.9,4347.8,2.76232476]
[1760073718348,0.012,4347.9,4347.8,3.19602476]
[1760073719574,0.012,4347.9,4347.8,8.14825284]
[1760073725433,0.012,4347.9,4347.8,2.76232476]
[1760073725621,0.012,4347.9,4347.8,7.25224188]
[1760073727525,0.012,4347.9,4347.8,7.68594188]
[1760073729023,0.1164,4348.4,4347.8,10.33815616]
[1760073729244,0.1164,4348.4,4348.3,5.10982808]
[1760073729650,0.1164,4348.4,4348.3,5.54352808]
[1760073730358,0.1164,4348.4,4348.3,8.39763021]
[1760073731076,0.002,4348.4,4348.3,8.39763021]
[1760073733195,0.002,4348.4,4348.3,7.80633021]
[1760073733895,0.002,4348.4,4348.3,2.29974932]
[1760073734061,0.5644,4348.4,4348.3,2.29974932]
[1760073734261,0.1164,4348.4,4348.3,2.29974932]
[1760073739040,0.002,4348.4,4348.3,7.70867489]
[1760073739173,0.002,4348.4,4348.3,7.6856774]
[1760073739366,0.002,4348.4,4348.3,4.25442284]
[1760073740310,0.002,4348.4,4348.3,9.32105092]
[1760073740524,0.002,4348.4,4348.3,3.93512284]
[1760073740744,0.002,4348.4,4348.3,2.29974932]
[1760073741110,0.002,4348.4,4348.3,2.91404681]
[1760073741945,0.002,4348.4,4348.3,7.86627489]
[1760073742122,0.002,4348.4,4348.3,3.00544932]
[1760073743843,0.002,4348.4,4348.3,2.29974932]
[1760073744953,0.002,4348.4,4348.3,2.73344932]
[1760073745638,0.002,4348.4,4348.3,2.75644681]
[1760073745837,0.002,4348.4,4348.3,3.77075752]
[1760073746014,0.002,4348.4,4348.3,3.88515752]
[1760073746215,0.002,4348.4,4348.3,3.86216003]
[1760073747249,0.002,4348.4,4348.3,3.42846003]
[1760073747551,0.002,4348.4,4348.3,3.89956003]
[1760073756691,0.002,4348.4,4348.3,3.92255752]
[1760073761367,0.002,4348.4,4348.3,3.89956003]
[1760073764120,0.002,4348.4,4348.3,3.92255752]
[1760073764305,0.002,4348.4,4348.3,3.89956003]
[1760073765092,0.002,4348.4,4348.3,2.32274681]
[1760073765308,0.002,4348.4,4348.3,2.29974932]
[1760073766717,0.002,4348.4,4348.0,0.5855]
[1760073766718,0.002,4348.4,4348.0,0.1144]
[1760073767021,0.002,4348.4,4348.2,2.29980221]
[1760073767022,6.9296,4348.3,4348.2,2.29980221]
[1760073767316,6.48,4348.3,4348.2,2.29980221]
[1760073769388,0.1164,4348.4,4348.3,2.29974932]
[1760073769588,6.5964,4348.4,4348.3,2.29974932]
[1760073776297,0.002,4348.4,4348.3,3.21180781]
[1760073776492,5.372,4348.4,4348.3,3.21180781]
[1760073776898,5.372,4348.4,4348.3,3.32620781]
[1760073778331,0.002,4348.4,4348.3,3.32120781]
[1760073781651,0.002,4348.4,4348.3,2.87410781]
[1760073782132,0.002,4348.4,4348.3,3.32120781]
[1760073782745,0.002,4348.4,4348.3,3.3442053]
[1760073784200,0.002,4348.4,4348.3,9.8242053]
[1760073784540,0.002,4348.4,4348.3,9.80120781]
[1760073784700,0.002,4348.4,4348.3,11.72120781]
[1760073785227,0.49623516,4350.8,4349.6,2.29904084]
[1760073785401,1e-08,4349.9,4349.8,10.04705008]
[1760073785596,1e-08,4349.9,4349.8,10.16145008]
[1760073785829,1e-08,4349.9,4349.8,10.60855008]
[1760073786263,1e-08,4349.9,4349.8,17.09155008]
[1760073786633,1e-08,4349.9,4349.8,17.20800298]
[1760073786833,1e-08,4349.9,4349.8,19.18169777]
[1760073787342,1e-08,4349.9,4349.8,12.58224487]
[1760073787528,1e-08,4349.9,4349.8,17.14424487]
[1760073787728,1e-08,4349.9,4349.8,10.21514487]
[1760073787959,1e-08,4349.9,4349.8,10.66224487]
[1760073788965,1e-08,4349.9,4349.8,12.58224487]
[1760073789124,1e-08,4349.9,4349.8,12.46784487]
[1760073790331,1e-08,4349.9,4349.8,18.94884487]
[1760073791945,1e-08,4349.9,4349.8,18.94984487]
[1760073793679,0.01,4350.9,4350.8,2.29842787]
[1760073793839,0.01,4350.9,4350.8,8.12652168]
[1760073794043,0.01,4350.9,4350.8,8.57362168]
[1760073797144,0.01,4351.9,4350.8,12.98968163]
[1760073797351,0.01,4351.9,4351.8,8.12599352]
[1760073797846,2.408,4352.7,4351.8,8.57309352]
[1760073798048,2.408,4352.7,4352.6,8.12557117]
[1760073798380,2.122,4353.2,4352.6,8.57267117]
[1760073798684,2.122,4353.2,4352.8,2.2973718]
[1760073798850,7.061,4353.7,4352.8,2.2973718]
[1760073799049,0.1144,4353.5,4352.8,2.8588718]
[1760073799375,0.2372,4353.9,4352.8,2.8588718]
[1760073799376,5.47,4353.8,4352.8,2.8588718]
[1760073800178,5.47,4353.8,4352.8,2.88184551]
[1760073800380,5.47,4353.8,4353.7,2.29689689]
[1760073800566,0.1244,4353.9,4353.8,2.29684413]
[1760073800875,0.01,4353.9,4353.7,8.12498845]
[1760073801255,0.01,4353.9,4353.8,2.29684413]
[1760073803085,0.01,4353.9,4353.7,5.82809381]
[1760073803243,0.01,4353.9,4353.8,2.29684413]
[1760073803673,0.01,4353.9,4353.7,8.12498283]
[1760073803873,0.01,4353.9,4353.7,5.82809381]
[1760073804051,0.465,4353.8,4353.4,2.41140463]
[1760073804247,0.01,4353.9,4353.4,0.1144]
[1760073804514,0.465,4353.8,4353.5,2.29699796]
[1760073804678,0.01,4353.9,4353.4,0.1144]
[1760073804844,0.465,4355.8,4353.7,5.82809381]
[1760073805044,0.61279141,4357.2,4354.9,0.6336]
[1760073805283,0.01,4357.9,4356.9,1.92]
[1760073805468,0.01,4357.9,4357.8,5.82809381]
[1760073806403,3.0932,4357.9,4356.4,0.4471]
[1760073806562,1.92,4357.8,4357.0,5.82809381]
[1760073806887,1.92,4357.8,4355.9,0.9041172]
[1760073806888,7.534,4357.7,4355.9,0.4471]
[1760073807048,7.995,4357.7,4357.2,5.82809381]
[1760073807251,0.461,4357.6,4357.3,0.21055253]
[1760073807583,0.461,4357.5,4357.4,0.21055253]
[1760073807787,8.871,4357.5,4357.4,0.21055253]
[1760073807990,0.01,4357.9,4357.4,2.50548361]
[1760073808303,4.353,4357.8,4357.5,0.21055253]
[1760073808507,4.353,4357.8,4357.6,0.21055253]
[1760073808674,4.353,4357.8,4357.7,0.21055253]
[1760073808999,4.353,4357.8,4357.7,0.21008221]
[1760073809204,4.353,4357.8,4357.3,15.19059104]
[1760073809400,0.6931,4357.7,4356.6,15.19059104]
[1760073809605,0.6931,4357.7,4355.7,0.1703]
[1760073809606,0.6931,4357.7,4356.7,0.209957]
[1760073809607,1.0946,4357.6,4356.7,0.209957]
[1760073809774,1.0946,4357.6,4356.0,15.19059104]
[1760073809968,0.6336,4357.4,4356.1,0.21003062]
[1760073810170,0.2321,4357.7,4355.8,15.19059104]
[1760073810171,0.6336,4357.2,4355.8,15.19059104]
[1760073810371,0.6336,4357.2,4355.9,0.23289723]
[1760073810578,0.6336,4357.0,4356.1,15.19059104]
[1760073810805,0.6336,4357.0,4356.4,2.29546081]
[1760073811311,8.869,4356.9,4356.8,2.29523398]
[1760073811469,0.461,4357.5,4356.9,2.29519997]
[1760073811675,8.869,4357.4,4356.9,2.29519997]
[1760073812019,0.461,4357.3,4356.9,2.29519997]
[1760073812395,8.867,4357.2,4356.8,2.29522362]
[1760073812602,0.461,4357.1,4356.6,2.29535363]
[1760073813110,0.461,4357.0,4355.5,15.19059104]
[1760073813307,0.461,4356.9,4355.7,2.29584222]
[1760073813473,0.461,4356.8,4356.1,2.29562318]
[1760073813811,8.867,4357.2,4355.8,1.8]
[1760073813812,0.461,4356.7,4355.8,1.8]
[1760073813975,0.6336,4357.1,4355.8,1.8]
[1760073814329,0.461,4356.6,4355.9,2.50593535]
[1760073814608,6.938,4356.5,4356.0,0.21020506]
[1760073814807,6.938,4356.5,4355.5,15.19059104]
[1760073814808,2.85,4356.4,4355.5,15.19059104]
[1760073815012,2.85,4356.4,4356.0,2.29567463]
[1760073815408,0.5990645,4358.0,4356.0,2.29567463]
[1760073815409,0.461,4356.3,4356.0,2.29567463]
[1760073815611,8.866,4356.2,4356.0,2.29567463]
[1760073815826,0.1144,4356.0,4355.8,2.29578952]
[1760073816029,0.1144,4356.0,4355.9,2.29573681]
[1760073817424,0.461,4356.9,4356.5,2.2953929]
[1760073817727,0.1144,4356.3,4356.0,2.29568411]
[1760073818026,8.865,4356.2,4356.0,2.29568411]
[1760073818230,0.1144,4356.3,4356.0,2.29568411]
[1760073818530,0.1144,4356.3,4356.2,2.29557871]
[1760073818825,3.0254,4356.3,4356.2,2.29557871]
[1760073820198,3.0254,4356.3,4355.6,0.5615]
[1760073820407,3.0254,4356.3,4356.2,2.29557871]
[1760073820604,3.4864,4356.3,4356.2,2.29557871]
[1760073820806,3.4864,4356.3,4356.1,2.29562756]
[1760073821206,3.4864,4356.3,4356.2,2.29557871]
[1760073822816,3.0254,4356.3,4356.2,2.29557871]
[1760073823829,0.1144,4356.3,4356.2,2.52513658]
[1760073824049,0.6336,4357.4,4356.2,2.52513658]
[1760073824050,2.389,4357.0,4356.2,15.86734891]
[1760073824255,4.35,4356.9,4356.8,2.29526257]
[1760073824463,4.35,4356.9,4356.2,15.86734891]
[1760073824464,0.461,4357.5,4356.9,2.29516664]
[1760073824658,6.09,4357.4,4357.0,2.29514718]
[1760073824952,0.461,4357.3,4357.0,2.29514718]
[1760073825155,0.6951,4357.8,4356.2,15.42014891]
[1760073825325,0.6951,4357.8,4356.8,15.19059104]
[1760073825326,0.463,4357.8,4356.8,15.19059104]
[1760073825527,2.97,4357.7,4357.5,2.29484648]
[1760073825735,2.97,4357.7,4356.8,15.19059104]
[1760073825937,0.002,4357.8,4357.7,2.29478853]
[1760073826135,8.868,4357.8,4357.7,2.29478853]
[1760073826335,8.868,4357.8,4357.7,2.31773641]
[1760073826560,8.868,4357.8,4357.7,2.29478853]
[1760073826864,8.868,4357.8,4357.7,2.50614012]
[1760073827766,8.868,4357.8,4357.7,0.21135159]
[1760073828063,9.3287,4357.8,4357.7,0.21158804]
[1760073829241,0.002,4357.8,4357.7,2.29478853]
[1760073829430,0.387,4357.8,4357.7,2.29478853]
[1760073829643,3.2357,4357.8,4357.7,0.21189543]
[1760073829849,3.2357,4357.8,4357.3,2.29499913]
[1760073830076,0.4607,4357.7,4356.7,15.19059104]
[1760073830385,5.274,4357.6,4356.8,1.44196383]
[1760073830546,5.274,4357.6,4357.4,2.29493351]
[1760073830879,5.7347,4357.6,4357.4,2.29493351]
[1760073831463,0.002,4357.8,4357.7,2.29478853]
[1760073831663,8.866,4357.8,4357.7,2.29478853]
[1760073832375,8.866,4357.8,4357.0,15.19059104]
[1760073832561,8.866,4357.8,4357.6,2.29483749]
[1760073832764,9.3267,4357.8,4357.7,2.50713002]
[1760073833145,9.3267,4357.8,4357.7,0.21234149]
[1760073836654,0.1144,4357.7,4356.9,0.92402562]
[1760073836859,2.388,4357.6,4357.5,2.29489386]
[1760073837188,2.8252,4357.6,4357.5,2.29489386]
[1760073837484,6.9122,4357.6,4357.5,2.29489386]
[1760073837657,8.863,4357.6,4357.5,2.29489386]
[1760073838892,9.3002,4357.6,4357.5,2.29489386]
[1760073839263,8.863,4357.6,4357.5,2.29489386]
[1760073840572,9.3002,4357.6,4357.5,2.29489386]
[1760073841267,9.3002,4357.6,4356.9,0.1144]
[1760073841467,0.1144,4357.4,4356.6,16.00021666]
[1760073841667,6.9112,4357.3,4356.7,0.1144]